Cogmind - Beta 15 @@@ ROGUE MODE // 2025.10.18 @ 12:49:08 Player: TapeIsSticky Result: Destroyed by Y-45 Defender with Beam Rifle Performance ------------- Evolutions (0) 0 Regions Visited (3) 600 Robots Destroyed (59) 295 Value Destroyed (1110) 1110 Prototype IDs (0) 0 Alien Tech Used (0) 0 Bonus (0) 0 TOTAL SCORE: 2005 Bonus ------- None Cogmind --------- Core Integrity 0/250 Matter 63/300 Energy 96/100 System Corruption 1% Temperature Cool (9) Movement Rolling (131) Ox3 Location -8/Recycling Parts ------- > --- POWER (1) -------- Subdweller Power Source > --- PROPULSION (2) --- Wheel Subdweller Monowheel > --- UTILITY (2) ------ Huge Storage Unit Seismic Detector > --- WEAPON (2) ------- Subdweller Machine Gun Subdweller Machine Gun > --- INVENTORY (25) --- Light Ion Engine Subdweller Power Source Light Treads Light Treads Light Treads Light Treads Disposable Heat Sink Huge Storage Unit Medium Battery (150) Large Matter Pod (150) Large Matter Pod (150) High-capacity Matter Pod (200) Subdweller Optics Subdweller Optics Transport Network Coupler Subdweller Laser Light EM Pulse Cannon Assault Rifle Assault Rifle Shotgun Shotgun Shotgun Battle Rifle Subdweller Machine Gun Grenade Launcher Peak State ------------ > --- POWER ------------ Subdweller Power Source > --- PROPULSION ------- Wheel Subdweller Monowheel > --- UTILITY ---------- Huge Storage Unit Seismic Detector > --- WEAPON ----------- Subdweller Machine Gun Subdweller Machine Gun > --- INVENTORY -------- Light Ion Engine Subdweller Power Source Light Treads Light Treads Light Treads Light Treads Disposable Heat Sink Huge Storage Unit Medium Battery Large Matter Pod Large Matter Pod High-capacity Matter Pod Subdweller Optics Subdweller Optics Transport Network Coupler Subdweller Laser Light EM Pulse Cannon Assault Rifle Assault Rifle Shotgun Shotgun Shotgun Battle Rifle Subdweller Machine Gun Grenade Launcher [Rating: 14] Favorites ----------- Power Ion Engine Engine Ion Engine Propulsion Light Treads Treads Light Treads Wheel Wheel Utility Huge Storage Unit Device Seismic Detector Storage Huge Storage Unit Processor Targeting Computer Protection Light Armor Plating Weapon Assault Rifle Energy Cannon Light EM Pulse Cannon Ballistic Gun Assault Rifle Launcher Grenade Launcher Build | -11 -10 -10 -8 ------- Run | Yrd Mat Sub Rec Slots Evolved . | . . . . Power . | . . . . Propulsion . | . . . . Utility . | . . . . Weapon . | . . . . Parts Attached 26 | 8 9 7 2 Power 3 | 2 . 1 . Engine 3 | 2 . 1 . Core . | . . . . Reactor . | . . . . Propulsion 5 | 2 1 . 2 Treads 3 | 2 1 . . Leg . | . . . . Wheel 2 | . . . 2 Hover . | . . . . Flight . | . . . . Utility 8 | 2 5 1 . Device 2 | 1 1 . . Storage 4 | 1 3 . . Processor 1 | . 1 . . Hackware . | . . . . Protection 1 | . . 1 . Artifact . | . . . . Weapon 10 | 2 3 5 . Energy Gun . | . . . . Energy Cannon 1 | . . 1 . Ballistic Gun 8 | 2 2 4 . Ballistic Cannon . | . . . . Launcher 1 | . 1 . . Special Weapon . | . . . . Impact Weapon . | . . . . Slashing Weapon . | . . . . Piercing Weapon . | . . . . Special Melee Weapon . | . . . . Unidentified Prototypes . | . . . . Parts Lost 2 | . 1 1 . Power 1 | . . 1 . Propulsion . | . . . . Utility 1 | . 1 . . Weapon . | . . . . Highest Loss Streak 1 | . 1 1 . To Critical Strikes . | . . . . Average Backups 18 | 2 15 22 25 Power 1 | . 1 1 2 Propulsion 2 | . 2 3 4 Utility 7 | . 5 8 9 Weapon 7 | . 6 8 10 Tool/Special . | . . . . Unused Backups 17 | . 3 . 14 Power 1 | . . . 1 Propulsion 1 | . . . 1 Utility 9 | . 1 . 8 Weapon 6 | . 2 . 4 Tool/Special . | . . . . Average Slot Usage (%) 97 | . 99 94 100 Engine 11 | . 14 9 14 Treads 27 | . 27 28 25 Device 8 | . 3 13 14 Storage 14 | . 14 14 14 Processor 4 | . 9 . . Ballistic Gun 26 | . 27 24 28 Launcher 1 | . . 3 . Peak Build Rating 14 | 7 10 13 14 Average Rating 9 | 5 8 10 13 On Entrance 7 | . 7 9 13 Naked Turns . | . . . . Heaviest Build 94 | 15 90 94 94 Greatest Support 40 | 40 40 40 40 Greatest Overweight (x) 3 | . 2 2 3 Average Overweight (x) 1 | . . 2 2 Largest Inventory Capacity 25 | 8 25 25 25 Average Capacity 22 | 7 19 25 25 Most Carried 25 | 4 20 25 25 Average Carried 18 | 2 15 22 25 Final Capacity 25 | 8 25 25 25 Final Carried 25 | 4 19 25 25 Class Distribution -------------------- 100% | Mutant Dominant Class ---------------- Mutant | -10/Materials Mutant | -10/Subcaves Mutant | -8/Recycling Resources | -11 -10 -10 -8 ----------- Run | Yrd Mat Sub Rec Matter Collected 1598 | 340 954 256 48 Remotely . | . . . . Salvage Created 1498 | 138 993 270 97 Parts 108 | 10 79 17 2 Haulers Intercepted 2 | . 2 . . Recyclers Shooed 3 | 1 2 . . Parts Field Recycled . | . . . . Retrieved Matter . | . . . . Parts Self-Destructed 5 | . . 5 . Prevented . | . . . . Kills | -11 -10 -10 -8 ------- Run | Yrd Mat Sub Rec Combat Hostiles Destroyed 31 | . 20 10 1 Guns 22 | . 15 6 1 AOE 9 | . 5 4 . Classes Destroyed 12 | 3 6 2 1 Worker 4 | 1 3 . . Builder 5 | . 5 . . Tunneler 5 | 3 2 . . Hauler 2 | . 2 . . Recycler 5 | 1 3 . 1 Operator 2 | . 2 . . Turret 2 | . . 2 . Watcher 3 | . 3 . . Swarmer 12 | . 8 4 . Grunt 14 | . 12 2 . Duelist 1 | . . . 1 Subdweller 4 | . . 4 . Best Kill Streak 9 | 5 9 4 1 Combat Bots Only 5 | . 5 4 1 Max Kills in Single Turn 4 | 1 4 2 1 Gunslinging 1 | . 1 . . Exploded 2 | . 1 2 . Melee . | . . . . Uniques/NPCs Destroyed . | . . . . Combat | -11 -10 -10 -8 -------- Run | Yrd Mat Sub Rec Hostile Shots Fired 180 | . 66 113 1 Missed 66 | . 13 53 . Hits 114 | . 53 60 1 Projectile 114 | . 53 60 1 Damage Taken 1260 | . 529 716 15 Core 257 | . 60 182 15 Absorbed by Shields . | . . . . Regen/Repaired (Parts) 191 | . 191 . . Core Remaining (%) 100 | 100 . . . Volleys Fired 150 | 10 86 49 5 Largest 2 | 2 2 2 2 Hottest 60 | 40 46 60 60 Shots Fired 273 | 20 163 80 10 Gun 246 | 20 154 62 10 Cannon 2 | . . 2 . Launcher 25 | . 9 16 . Special . | . . . . Kinetic 246 | 20 154 62 10 Thermal . | . . . . Explosive 25 | . 9 16 . Electromagnetic 2 | . . 2 . Robot Hit Streak 13 | 3 13 10 5 Robot Miss Streak 4 | 2 4 2 1 Penetration Max . | . . . . Secondary Targets 3 | . 1 2 . Max Gunslinging Chain 1 | . 1 1 . Shots Hit Robots 160 | 10 100 43 7 Core Hits 94 | 5 64 23 2 Critical Kills 1 | . . 1 . Critical Parts Destroyed 1 | . . 1 . Critical Strikes 2 | . . 2 . Destroy 2 | . . 2 . Melee Attacks . | . . . . Impact . | . . . . Slashing . | . . . . Piercing . | . . . . Sneak Attacks . | . . . . Combat Hostiles . | . . . . Follow-up Attacks . | . . . . Damage Inflicted 3246 | 130 1957 1006 153 Guns 2313 | 123 1284 753 153 Cannons . | . . . . Explosions 887 | . 634 253 . Melee . | . . . . Ramming 46 | 7 39 . . Kinetic 2313 | 123 1284 753 153 Thermal 192 | . 192 . . Explosive 637 | . 384 253 . Electromagnetic 58 | . 58 . . Impact . | . . . . Slashing . | . . . . Piercing . | . . . . Highest Corruption 1 | . . . 1 Average Corruption 1 | . . . 1 Corruption Purged . | . . . . Corruption Blocked . | . . . . Effects 3 | . . . 3 Message Errors 1 | . . . 1 Energy Discharges 1 | . . . 1 Data Loss (minor) 1 | . . . 1 Overload Shots . | . . . . Overflow Damage 70 | . 67 3 . Projectiles . | . . . . Explosions 70 | . 67 3 . Melee . | . . . . Knockbacks 1 | 1 . . . Impact 1 | 1 . . . Kinetic . | . . . . Secondary . | . . . . Self-Inflicted Damage 39 | . . 39 . Shots 2 | . . 2 . Rammed 14 | . 14 . . Targets Rammed 15 | 1 14 . . Kicked . | . . . . Crushed 1 | 1 . . . Highest Temperature 4 | . 4 . . Average Temperature 2 | . 2 . . Received Heat Transfer 423 | . 183 231 9 Siege Activations . | . . . . Martial Activations . | . . . . Shielding Activations . | . . . . Robots Disrupted . | . . . . Combat Hostiles . | . . . . Robots Corrupted . | . . . . Combat Hostiles . | . . . . Parts Fried . | . . . . Impact Corruptions . | . . . . Robots Melted . | . . . . Combat Hostiles . | . . . . Parts Melted . | . . . . Heat Transferred 200 | . 200 . . Parts Sabotaged . | . . . . Parts Stolen . | . . . . Parts Stripped . | . . . . Power Chain Reactions 1 | . 1 . . Alert | -11 -10 -10 -8 ------- Run | Yrd Mat Sub Rec Maximum Alert Level 1 | . 1 . . Low Security (%) 97 | 100 97 . 100 Level 1 2 | . 2 . . Level 2 . | . . . . Level 3 . | . . . . Level 4 . | . . . . Level 5 . | . . . . High Security . | . . . . Max Security . | . . . . Peak Influence 211 | 5 211 . 154 Initial 130 | . 3 . 130 Average 90 | 1 92 . 127 Influence Increases 1137 | 25 705 335 72 Destroy 0b10 Robot/C 580 | . 400 160 20 Destroy 0b10 Robot/NC 130 | 25 100 . 5 Destroy Leader 110 | . 100 10 . Successful Hack 42 | . 28 . 14 Select Force Hacks 30 | . . . 30 Disable Machine 45 | . 45 . . Destroy Structure 20 | . 17 . 3 Lose Combat Pursuer 180 | . 15 165 . Influence Decreases 1025 | 20 667 106 232 Entered New Map 166 | . 2 22 142 Time Decay 849 | 20 655 84 90 Lost Part 10 | . 10 . . Squads Dispatched 5 | . 5 . . Investigation 2 | . 2 . . Extermination . | . . . . Reinforcement 3 | . 3 . . Assault . | . . . . Garrison . | . . . . Intercept . | . . . . Searches Triggered . | . . . . Construction Impeded . | . . . . Haulers Reinforced . | . . . . Active Scanning Responses . | . . . . Cargo Convoy Interrupts . | . . . . Stealth | -11 -10 -10 -8 --------- Run | Yrd Mat Sub Rec Distress Signals . | . . . . Communications Jammed . | . . . . Distress Signals . | . . . . Times Spotted 57 | . 39 17 1 Peak Tracking Total 5 | . 4 5 . Tactical Retreats 8 | . 1 7 . Traps | -11 -10 -10 -8 ------- Run | Yrd Mat Sub Rec Traps Triggered 2 | . 1 1 . Indirectly . | . . . . Trap Hack Attempts . | . . . . Triggered . | . . . . Disarmed . | . . . . Reprogrammed . | . . . . Reused . | . . . . Traps Extracted . | . . . . Installed . | . . . . Triggered . | . . . . Machines | -11 -10 -10 -8 ---------- Run | Yrd Mat Sub Rec Machines Disabled 6 | . 3 3 . Max in Single Turn 2 | . 2 1 . Machines Repaired . | . . . . Machines Dismantled . | . . . . Machines Sabotaged . | . . . . Overloaded Fab Kills . | . . . . Hacking | -11 -10 -10 -8 --------- Run | Yrd Mat Sub Rec Machines Accessed 11 | . 8 . 3 Terminals 7 | . 5 . 2 Fabricators . | . . . . Repair Stations 1 | . 1 . . Recycling Units 3 | . 2 . 1 Scanalyzers . | . . . . Garrison Access . | . . . . Total Hacks 41 | . 30 . 11 Successful 20 | . 18 . 2 Failed 21 | . 12 . 9 Catastrophic 2 | . . . 2 Database Lockouts . | . . . . Manual 24 | . 15 . 9 Terminals 22 | . 15 . 7 Fabricators . | . . . . Repair Stations 9 | . 9 . . Recycling Units 10 | . 6 . 4 Scanalyzers . | . . . . Garrison Access . | . . . . Terminal Hacks 2 | . 2 . . Record 1 | . 1 . . Robot Analysis 1 | . 1 . . Fabricator Hacks . | . . . . Repair Station Hacks 6 | . 6 . . Scan Component 3 | . 3 . . Repair 3 | . 3 . . Recycling Unit Hacks 4 | . 4 . . Retrieve Matter 2 | . 2 . . Retrieve Components 2 | . 2 . . Scanalyzer . | . . . . Garrison Access Hacks . | . . . . Unauthorized Hacks 8 | . 6 . 2 Terminals 7 | . 6 . 1 Botnet 1 | . 1 . . Skim 6 | . 5 . 1 Fabricators . | . . . . Repair Stations . | . . . . Recycling Units 1 | . . . 1 Tunnel 1 | . . . 1 Scanalyzers . | . . . . Garrison Access . | . . . . Data Cores Recovered . | . . . . Used . | . . . . Hacking Detections 8 | . 6 . 2 Full Trace Events 3 | . 1 . 2 Feedback Events 1 | . . . 1 Corruption 1 | . . . 1 Feedback Blocked . | . . . . Robot Schematics Acquired . | . . . . Robots Built . | . . . . Authchips . | . . . . Time . | . . . . Total Robot Build Rating . | . . . . Part Schematics Acquired . | . . . . Parts Built . | . . . . Authchips . | . . . . Time . | . . . . Total Part Build Rating . | . . . . Parts Repaired 3 | . 3 . . Time 78 | . 78 . . Parts Recycled . | . . . . Recycled Matter . | . . . . Retrieved Matter 301 | . 301 . . Retrieved Components 9 | . 9 . . Parts Scanalyzed . | . . . . Part Schematics Acquired . | . . . . Parts Damaged . | . . . . Bothacking | -11 -10 -10 -8 ------------ Run | Yrd Mat Sub Rec Used RIF Installer . | . . . . Robots Hacked . | . . . . Non-combat . | . . . . Combat . | . . . . Robot Hacks Applied . | . . . . Relay Couplers Released . | . . . . Fabnet Peak Effective % . | . . . . Robots Rewired . | . . . . Allies Hacked . | . . . . Hacks Repelled . | . . . . Allies | -11 -10 -10 -8 -------- Run | Yrd Mat Sub Rec Total Allies . | . . . . Largest Group . | . . . . Highest-Rated Group . | . . . . Highest-Rated Ally . | . . . . Total Orders . | . . . . Ally Attacks . | . . . . Total Damage . | . . . . Kills . | . . . . Allies Corrupted . | . . . . Allies Melted . | . . . . Intel | -11 -10 -10 -8 ------- Run | Yrd Mat Sub Rec Active Infowar (turns) 3675 | 29 731 2733 182 Seismic 3675 | 29 731 2733 182 Robot Analysis Total 1 | . 1 . . Derelict Logs Recovered 2 | . . 2 . Drone Launches . | . . . . Drone Recoveries . | . . . . Exploration | -11 -10 -10 -8 ------------- Run | Yrd Mat Sub Rec Turns Passed 5853 | 127 2649 2895 182 Spaces Moved 1704 | 54 917 677 56 Core 4 | 4 . . . Treads 1692 | 50 917 677 48 Legs . | . . . . Wheels 8 | . . . 8 Hover . | . . . . Flight . | . . . . Fastest Speed 50 | 50 160 320 131 Average Speed 265 | 151 230 320 293 Slowest Speed 320 | 160 320 320 320 Overloaded Moves . | . . . . Propulsion Burnouts . | . . . . Robots Hopped . | . . . . Potential Cave-ins . | . . . . Cave-ins Triggered . | . . . . Exploration Rate (%) 40 | 4 100 40 17 Regions Visited 3 Branch Regions 2 Pre-discovered Areas 2 | . . 1 1 Known Exits Taken 2 | . 1 1 . Unknown Exits Taken 1 | 1 . . . Scrap Searched . | . . . . Spaces Dug 37 | . 7 30 . Terrain Destroyed 87 | . 15 70 2 Melee . | . . . . Projectile 2 | . . . 2 AOE 85 | . 15 70 . Terrain Rammed . | . . . . Walls Destroyed . | . . . . Machines Disabled . | . . . . Actions | -11 -10 -10 -8 --------- Run | Yrd Mat Sub Rec Total 2733 | 75 1274 1321 63 Wait 780 | . 215 565 . Move 1701 | 53 916 676 56 Hop . | . . . . Pick Up 34 | 3 21 10 . Fast Attach 11 | 7 3 1 . Attach . | . . . . Detach . | . . . . Swap 32 | 1 13 16 2 Drop 10 | . 6 4 . Fire 150 | 10 86 49 5 Melee . | . . . . Ram . | . . . . Kick . | . . . . Crush 15 | 1 14 . . Escape Stasis . | . . . . Rewire . | . . . . Trap . | . . . . Miscellaneous . | . . . . Route ------- -11/Scrapyard -10/Materials (discovered 6 exits: *Mat x3 / *Min x2 / *Sub) -10/Subcaves (discovered 2 exits: Mat / *Rec) -8/Recycling (discovered 1 exit: Scr) History --------- Turn | Location | Event 2 | -11/Scrapyard | Met Revision 17 13 | -11/Scrapyard | Discovered new exit (range 15) 128 | -11/Scrapyard | Entered Materials 300 | -10/Materials | Build established: Mutant 407 | -10/Materials | Discovered new exit (range 11) 640 | -10/Materials | Discovered new exit (range 12) 776 | -10/Materials | Discovered new exit (range 6) 970 | -10/Materials | Discovered new exit (range 15) 1147 | -10/Materials | Discovered new exit (range 8) 1216 | -10/Materials | Learned location of 2 exits from Subcaves 1249 | -10/Materials | Learned 4 Recycling zone layouts 1270 | -10/Materials | Learned Storage terminal intel 1282 | -10/Materials | Identified exit to Mines 1282 | -10/Materials | Identified exit to Materials 1282 | -10/Materials | Identified exit to Subcaves 1284 | -10/Materials | Learned Storage terminal intel 1315 | -10/Materials | Loaded intel: 21 trap records 1437 | -10/Materials | Repaired Assault Rifle 1465 | -10/Materials | Repaired Lgt. Treads 1492 | -10/Materials | Repaired Lgt. Treads 2777 | -10/Materials | Entered Subcaves 2778 | -10/Subcaves | Identified exit to Materials 2778 | -10/Subcaves | Identified exit to Recycling 3734 | -10/Subcaves | Core integrity fell below 50% 3832 | -10/Subcaves | A swath of the cavern ceiling suddenly collapsed 4715 | -10/Subcaves | Learned Materials interactive machine intel 5508 | -10/Subcaves | Core integrity fell below 20% 5672 | -10/Subcaves | Entered Recycling 5673 | -8/Recycling | Identified exit to Scraptown 5854 | -8/Recycling | Destroyed by Y-45 Defender with Beam Rifle Last Messages --------------- DISCOVERED[-8/Storage] 05720_ Connecting with Terminal... >>Trojan(Skim) Trojan loaded successfully. Testing... Terminal linked with 0 systems. Please expand to 4 more systems! Feedback: System corruption (+1%). 05734_ System corrupted: Energy discharge (-28). 05740_ Connecting with Terminal... 05752_ CLAUIQI/CLU/N8MLXKO=1MGUDGS1ASRAQBR=% 05765_ Destroyed Lgt. Ion Engine. 05778_ R-06 Scavenger destroyed. 05784_ Acquired 48 matter. 05788_ System corrupted: Component data lost. 05794_ U-05 Engineer builds a Wall. 05846_ L-31 Rogue destroyed. 05847_ U-05 Engineer builds a Door. 05851_ U-05 Engineer builds a Wall. 05854_ Y-45 Defender springs to life. Map ----- +----------------------------------------------------+ | ????# ## #"Y"#####"Y"### "??????????????? | | ????# ######"""#???#"""#?# "??????????????? | | ????# #????#####???#####?# "??????????????? | | ????# #???????????#####??# ??????????????? | | ????# #??#######??#"""#??# ??????????????? | | ????# #??# ####"Y"#### ??????????????? | | ????# #??# # ########??????????????? | | ????# #??#???????????????????????????????????????? | | ????# #??#???????????????????????????????????????? | | ????# #??#???????????????? ??????????????????????? | | ????# #??#???????????????? ??????????????????????? | | ????# #??????????????????# ??????????????????????? | | #####/####????????#??????# ??????????????????????? | | # ??????# ?????# ###???????????????????? | | # """ ??????# Y?????# #???????????????????? | | # """"" ??????# g????+ #???????????????????? | | # """"" ??????#u ????# #???????????????????? | | # """"" ??????# ! h ???# #???""??????????????? | | # """ ??????# b ???# #???"""?????????????? | | # ??????# i ??# #??"""" ????????????? | | # ??????#iYk[ ??# #?? ?????????????? | | ##########??????# ] ?# #? """"?????????????? | | ????????????????# * % ?# #? """"?????????????? | | ????????????????#u Y s =# # """" ????????????? | | ????????????????# p !% # # """" #???????????? | | ????????????????# % @u + #?????###???? | | ????????????????# ! asi# # """" #??? ?? | | ###?????????????########## # """" ??# # | | ########???????????????# #? """"???# # | | ???????????????# #? """"???# """ """ # | | ########???????????????# #?? ???# """ """ # | | +####?# ???????????????# #??#####??# """ """ # | | ?????????????????????????# #?????##### ? | | ????????????????????????## ##????#"""#?? ??? | | ????????????????????????# ######"Y"#####+##### | | ????????????????????????# ! | | ????????????????????????# | | ????????????????????????# | | ????????????????????????# ####+######+######## | | ????????????????????????#######?# #? | | ????????????????????????????????# """ #? | | ????????????????????????????????# """ ""T"" #? | | ????????????????????????????????# """ """"" #? | | ????????????????????????????????# #? | | ????????????????????????????????##""T""##########? | | ?????????????????????????????????#"""""#?????????? | | ?????????????????????????????????#######?????????? | | | | | | | +----------------------------------------------------+ Best States ------------- Heat Dissipation 25 Energy Generation 15 Energy Capacity 250 Matter Stores 300 Matter Capacity 300 Sight Range 16 Terrain Scan Density 10 Armor Coverage 150 Evasion (%) 40 Targeting Accuracy 5 Recoil Reduction 2 Item Schematics ----------------- None Robot Schematics ------------------ None Fabricated ------------ Nothing Repaired ---------- Assault Rifle | 37% | -10/Materials Lgt. Treads | 54% | -10/Materials Lgt. Treads | 54% | -10/Materials Alien Tech Used ----------------- None Achievements -------------- None Challenges ------------ None Game ------ Seed GodEfficiencyBoregun Manual? 0 Play Time 00:19:56 Cumulative 213.8 hours Start 2025.10.18 @ 12:10:10 End 2025.10.18 @ 12:49:08 Sessions 2 Manual Loads 0 Difficulty Rogue Special Mode None Game No. 122 Rogue 122 Adventurer 0 Explorer 0 Win Type - Total 24 Types 10/1/9/1/0/1/1/1/0/0 Lore% 77 Gallery% 67 Achievement% 72 Wizard Run 0 Options --------- Layout 1 ASCII 0 Keyboard 0 Movement Arrows Keybinds 0 Fullscreen 2 Font 24/Tamsyn Map View 50x35 Zoom Use 0% Tactical HUD 1 Map Filters NONE Filters NONE Steam 1 RUN: b54312ef-e5f2-4238-a4b4-844945cc66f1